fUSD/lending_fUSD_20260118
["ID","MTS","AMOUNT","RATE_DAILY","PERIOD"]
[402530451,1768698666387,-150.0,0.00017285,2]
[402530452,1768698666396,-306.0,0.000173,2]
[402530453,1768698666406,-200.0,0.000173,2]
[402530454,1768698666415,-300.0,0.000173,2]
[402530455,1768698666425,-150.0,0.00017308,2]
[402530456,1768698666435,-150.0,0.0001731,2]
[402530457,1768698666445,-4001.0,0.00017311,2]
[402530458,1768698666457,-334.5472959,0.00017311,2]
[402530459,1768698666467,-642.94,0.00017311,2]
[402530460,1768698666476,-425.29992997,0.00017315,2]
[402530461,1768698666485,-506.00992652,0.00017321,2]
[402530462,1768698666495,-1000.0,0.00017321,2]
[402530463,1768698666505,-500.0,0.00017321,2]
[402530464,1768698666515,-1000.0,0.00017321,2]
[402530465,1768698666524,-1000.0,0.00017321,2]
[402530466,1768698666534,-1000.0,0.00017321,2]
[402530467,1768698666543,-1002.71264906,0.00017321,2]
[402530468,1768698666552,-1000.0,0.00017321,2]
[402530469,1768698666562,-500.0,0.00017321,2]
[402530470,1768698666572,-1000.0,0.00017321,2]
[402530471,1768698666582,-336.16412022,0.00017321,2]
[402530472,1768698666591,-500.0,0.00017321,2]
[402530473,1768698666601,-403.28870191,0.00017321,2]
[402530474,1768698666611,-1000.0,0.00017321,2]
[402530475,1768698666621,-1000.0,0.00017321,2]
[402530476,1768698666630,-1000.0,0.00017321,2]
[402530477,1768698666640,-1000.0,0.00017321,2]
[402530478,1768698666650,-1001.80765562,0.00017321,2]
[402530479,1768698666660,-1000.0,0.00017321,2]
[402530480,1768698666669,-1000.0,0.00017321,2]
[402530481,1768698666680,-500.0,0.00017321,2]
[402530482,1768698666689,-150.0,0.00017325,2]
[402530483,1768698666698,-150.0,0.00017325,2]
[402530484,1768698666708,-150.0,0.00017325,2]
[402530485,1768698666717,-200.0,0.00017327,2]
[402530486,1768698666727,-150.0,0.00017334,2]
[402530487,1768698666735,-161.01920204,0.00017336,2]
[402530488,1768698666745,-1624.4,0.00017345,2]
[402530489,1768698666755,-150.0,0.00017359,2]
[402530490,1768698666764,-163.0,0.0001736,2]
[402530491,1768698666772,-163.0,0.0001736,2]
[402530492,1768698666782,-1800.68,0.00017363,2]
[402530493,1768698666794,-150.0,0.00017365,2]
[402530494,1768698666803,-150.0,0.00017377,2]
[402530495,1768698666813,-150.0,0.00017381,2]
[402530496,1768698666822,-150.0,0.00017384,2]
[402530497,1768698666832,-519.71420438,0.00017389,2]
[402530498,1768698666842,-425.29992997,0.00017397,2]
[402530499,1768698666851,-150.0,0.000174,2]
[402530500,1768698666861,-150.0,0.000174,2]
[402530501,1768698666871,-1016.92674562,0.000174,2]
[402530502,1768698666882,-2500.0,0.000174,6]
[402530503,1768698666892,-150.0,0.00017408,2]
[402530504,1768698666902,-197.17,0.00017412,2]
[402530505,1768698666911,-150.0,0.00017433,2]
[402530506,1768698666921,-150.0,0.00017437,2]
[402530507,1768698666932,-1624.4,0.00017438,2]
[402530508,1768698666942,-193.62,0.0001744,2]
[402530509,1768698666951,-150.0,0.00017441,2]
[402530510,1768698666961,-2124.90934089,0.00017441,2]
[402530511,1768698666970,-150.0,0.00017441,2]
[402530512,1768698666980,-11936.85850831,0.00017441,2]
[402530513,1768698666990,-150.0,0.00017441,2]
[402530514,1768698667000,-2234.54854903,0.00017441,2]
[402530515,1768698667010,-150.0,0.00017446,2]
[402530516,1768698667020,-425.29992997,0.00017452,2]
[402530517,1768698667031,-152.0,0.00017453,3]
[402530518,1768698667041,-150.0,0.00017458,2]
[402530519,1768698667050,-150.0,0.00017471,2]
[402530520,1768698667060,-150.0,0.00017482,2]
[402530521,1768698667069,-1603.00557024,0.000175,2]
[402530522,1768698667079,-2000.0,0.000175,2]
[402530523,1768698667089,-500.0,0.000175,6]
[402530524,1768698667099,-3275.0,0.000175,2]
[402530525,1768698667108,-150.0,0.00017507,2]
[402530526,1768698667118,-150.0,0.00017515,2]
[402530527,1768698667127,-492.73785572,0.00017518,2]
[402530528,1768698667137,-150.0,0.00017532,2]
[402530529,1768698667146,-1624.4,0.00017532,2]
[402530530,1768698667156,-437.41795661,0.00017534,2]
[402530531,1768698667165,-500.0,0.00017534,2]
[402530532,1768698667175,-531.4,0.00017534,2]
[402530533,1768698667185,-500.0,0.00017534,2]
[402530534,1768698667194,-500.0,0.00017534,2]
[402530535,1768698667204,-569.32,0.00017534,2]
[402530536,1768698667213,-500.0,0.00017534,2]
[402530537,1768698667224,-500.0,0.00017534,2]
[402530538,1768698667234,-364.39443455,0.00017534,2]
[402530539,1768698667243,-500.0,0.00017534,2]
[402530540,1768698667254,-569.01874839,0.00017534,2]
[402530541,1768698667265,-500.0,0.00017534,2]
[402530542,1768698667275,-500.0,0.00017534,2]
[402530543,1768698667283,-500.0,0.00017534,2]
[402530544,1768698667293,-500.0,0.00017534,2]
[402530545,1768698667303,-500.0,0.00017534,2]
[402530546,1768698667313,-500.0,0.00017534,2]
[402530547,1768698667323,-500.0,0.00017534,2]
[402530548,1768698667333,-500.0,0.00017534,2]
[402530549,1768698667342,-500.0,0.00017534,2]
[402530550,1768698667351,-500.0,0.00017534,2]
[402530551,1768698667366,-500.0,0.00017534,2]
[402530552,1768698667376,-500.0,0.00017534,2]
[402530553,1768698667385,-500.0,0.00017534,2]
[402530554,1768698667394,-500.0,0.00017534,2]
[402530555,1768698667404,-523.72,0.00017534,2]
[402530556,1768698667415,-500.0,0.00017534,2]
[402530557,1768698667424,-500.0,0.00017534,2]
[402530558,1768698667434,-500.0,0.00017534,2]
[402530559,1768698667444,-500.0,0.00017534,2]
[402530560,1768698667453,-500.0,0.00017534,2]
[402530561,1768698667462,-500.0,0.00017534,2]
[402530562,1768698667471,-500.0,0.00017534,2]
[402530563,1768698667481,-744.66,0.00017534,2]
[402530564,1768698667491,-500.0,0.00017534,2]
[402530565,1768698667500,-500.0,0.00017534,2]
[402530566,1768698667510,-500.0,0.00017534,2]
[402530567,1768698667519,-500.0,0.00017534,2]
[402530568,1768698667529,-551.42,0.00017534,2]
[402530569,1768698667539,-500.0,0.00017534,2]
[402530570,1768698667550,-658.33,0.00017534,2]
[402530571,1768698667559,-500.0,0.00017534,2]
[402530572,1768698667568,-500.0,0.00017534,2]
[402530573,1768698667578,-500.0,0.00017534,2]
[402530574,1768698667587,-500.0,0.00017534,2]
[402530575,1768698667596,-500.0,0.00017534,2]
[402530576,1768698667606,-500.0,0.00017534,2]
[402530577,1768698667615,-500.0,0.00017534,2]
[402530578,1768698667625,-500.0,0.00017534,2]
[402530579,1768698667634,-612.18,0.00017534,2]
[402530580,1768698667643,-500.0,0.00017534,2]
[402530581,1768698667654,-500.0,0.00017534,2]
[402530582,1768698667662,-500.0,0.00017534,2]
[402530583,1768698667671,-540.32,0.00017534,2]
[402530584,1768698667681,-528.38,0.00017534,2]
[402530585,1768698667690,-500.0,0.00017534,2]
[402530586,1768698667699,-690.89,0.00017534,2]
[402530587,1768698667708,-500.0,0.00017534,2]
[402530588,1768698667717,-500.0,0.00017534,2]
[402530589,1768698667726,-258.47081115,0.00017534,2]
[402530590,1768698667735,-660.18,0.00017534,2]
[402530591,1768698667745,-500.0,0.00017534,2]
[402530592,1768698667755,-203.43951426,0.00017534,2]
[402530593,1768698667768,-500.0,0.00017534,2]
[402530594,1768698667778,-500.0,0.00017534,2]
[402530595,1768698667787,-591.87,0.00017534,2]
[402530596,1768698667797,-405.47665288,0.00017534,2]
[402530597,1768698667806,-500.0,0.00017534,2]
[402530598,1768698667815,-500.0,0.00017534,2]
[402530599,1768698667824,-500.0,0.00017534,2]
[402530600,1768698667833,-500.0,0.00017534,2]
[402530601,1768698667842,-500.0,0.00017534,2]
[402530602,1768698667851,-500.0,0.00017534,2]
[402530603,1768698667860,-626.39,0.00017534,2]
[402530604,1768698667870,-500.0,0.00017534,2]
[402530605,1768698667879,-500.0,0.00017534,2]
[402530606,1768698667888,-664.91,0.00017534,2]
[402530607,1768698667897,-500.0,0.00017534,2]
[402530608,1768698667904,-500.0,0.00017534,2]
[402530609,1768698667911,-660.95,0.00017534,2]
[402530610,1768698667917,-500.0,0.00017534,2]
[402530611,1768698667924,-612.83,0.00017534,2]
[402530612,1768698667931,-500.0,0.00017534,2]
[402530613,1768698667939,-500.0,0.00017534,2]
[402530614,1768698667949,-500.0,0.00017534,2]
[402530615,1768698667956,-500.0,0.00017534,2]
[402530616,1768698667965,-500.0,0.00017534,2]
[402530617,1768698667974,-500.0,0.00017534,2]
[402530618,1768698667983,-500.0,0.00017534,2]
[402530619,1768698667993,-500.0,0.00017534,2]
[402530620,1768698668002,-500.0,0.00017534,2]
[402530621,1768698668012,-589.94,0.00017534,2]
[402530622,1768698668021,-603.7,0.00017534,2]
[402530623,1768698668030,-500.0,0.00017534,2]
[402530624,1768698668039,-500.0,0.00017534,2]
[402530625,1768698668049,-500.0,0.00017534,2]
[402530626,1768698668060,-500.0,0.00017534,2]
[402530627,1768698668069,-500.0,0.00017534,2]
[402530628,1768698668078,-500.0,0.00017534,2]
[402530629,1768698668087,-654.72,0.00017534,2]
[402530630,1768698668097,-525.35427191,0.00017534,2]
[402530631,1768698668106,-500.0,0.00017534,2]
[402530632,1768698668116,-500.0,0.00017534,2]
[402530633,1768698668125,-933.13,0.00017534,2]
[402530634,1768698668134,-500.0,0.00017534,2]
[402530635,1768698668144,-500.0,0.00017534,2]
[402530636,1768698668154,-500.0,0.00017534,2]
[402530637,1768698668165,-570.2,0.00017534,2]
[402530638,1768698668175,-500.0,0.00017534,2]
[402530639,1768698668185,-500.0,0.00017534,2]
[402530640,1768698668195,-600.84,0.00017534,2]
[402530641,1768698668205,-500.0,0.00017534,2]
[402530642,1768698668215,-520.99,0.00017534,2]
[402530643,1768698668229,-500.0,0.00017534,2]
[402530644,1768698668239,-500.0,0.00017534,2]
[402530645,1768698668249,-500.0,0.00017534,2]
[402530646,1768698668260,-500.0,0.00017534,2]
[402530647,1768698668270,-500.0,0.00017534,2]
[402530648,1768698668280,-500.0,0.00017534,2]
[402530649,1768698668289,-500.0,0.00017534,2]
[402530650,1768698668299,-500.0,0.00017534,2]
[402530651,1768698668308,-500.0,0.00017534,2]
[402530652,1768698668318,-500.0,0.00017534,2]
[402530653,1768698668328,-500.0,0.00017534,2]
[402530654,1768698668337,-500.0,0.00017534,2]
[402530655,1768698668350,-500.0,0.00017534,2]
[402530656,1768698668367,-500.0,0.00017534,2]
[402530657,1768698668383,-500.0,0.00017534,2]
[402530658,1768698668394,-500.0,0.00017534,2]
[402530659,1768698668407,-500.0,0.00017534,2]
[402530660,1768698668419,-500.0,0.00017534,2]
[402530661,1768698668437,-500.0,0.00017534,2]
[402530662,1768698668462,-782.63,0.00017534,2]
[402530663,1768698668478,-500.0,0.00017534,2]
[402530664,1768698668495,-500.0,0.00017534,2]
[402530665,1768698668508,-500.0,0.00017534,2]
[402530666,1768698668521,-500.0,0.00017534,2]
[402530667,1768698668531,-500.0,0.00017534,2]
[402530668,1768698668545,-500.0,0.00017534,2]
[402530669,1768698668560,-500.0,0.00017534,2]
[402530670,1768698668574,-510.91,0.00017534,2]
[402530671,1768698668588,-500.0,0.00017534,2]
[402530672,1768698668602,-500.0,0.00017534,2]
[402530673,1768698668616,-300.0,0.00017534,2]
[402530674,1768698668629,-500.0,0.00017534,2]
[402530675,1768698668644,-679.15,0.00017534,2]
[402530676,1768698668658,-622.28,0.00017534,2]
[402530677,1768698668671,-500.0,0.00017534,2]
[402530678,1768698668685,-741.27,0.00017534,2]
[402530679,1768698668697,-500.0,0.00017534,2]
[402530680,1768698668710,-500.0,0.00017534,2]
[402530681,1768698668723,-500.0,0.00017534,2]
[402530682,1768698668739,-1336.75,0.00017534,2]
[402530683,1768698668752,-500.0,0.00017534,2]
[402530684,1768698668764,-500.0,0.00017534,2]
[402530685,1768698668775,-505.43816202,0.00017534,2]
[402530686,1768698668786,-500.0,0.00017534,2]
[402530687,1768698668797,-500.0,0.00017534,2]
[402530688,1768698668810,-500.0,0.00017534,2]
[402530689,1768698668824,-500.0,0.00017534,2]
[402530690,1768698668835,-356.24620846,0.00017534,2]
[402530691,1768698668845,-500.0,0.00017534,2]
[402530692,1768698668855,-527.62,0.00017534,2]
[402530693,1768698668868,-655.43,0.00017534,2]
[402530694,1768698668884,-500.0,0.00017534,2]
[402530695,1768698668895,-500.0,0.00017534,2]
[402530696,1768698668905,-809.56,0.00017534,2]
[402530697,1768698668916,-500.0,0.00017534,2]
[402530698,1768698668928,-500.0,0.00017534,2]
[402530699,1768698668939,-500.0,0.00017534,2]
[402530700,1768698668950,-643.54,0.00017534,2]
[402530701,1768698668962,-500.0,0.00017534,2]
[402530702,1768698668973,-500.0,0.00017534,2]
[402530703,1768698668985,-500.0,0.00017534,2]
[402530704,1768698668997,-812.63,0.00017534,2]
[402530705,1768698669008,-500.0,0.00017534,2]
[402530706,1768698669020,-500.0,0.00017534,2]
[402530707,1768698669032,-500.0,0.00017534,2]
[402530708,1768698669045,-500.0,0.00017534,2]
[402530709,1768698669056,-500.0,0.00017534,2]
[402530710,1768698669079,-500.0,0.00017534,2]
[402530711,1768698669092,-500.0,0.00017534,2]
[402530712,1768698669103,-500.0,0.00017534,2]
[402530713,1768698669115,-500.0,0.00017534,2]
[402530714,1768698669127,-500.0,0.00017534,2]
[402530715,1768698669140,-500.0,0.00017534,2]
[402530716,1768698669152,-500.0,0.00017534,2]
[402530717,1768698669164,-500.0,0.00017534,2]
[402530718,1768698669176,-500.0,0.00017534,2]
[402530719,1768698669188,-500.0,0.00017534,2]
[402530720,1768698669200,-500.0,0.00017534,2]
[402530721,1768698669211,-500.0,0.00017534,2]
[402530722,1768698669226,-500.0,0.00017534,2]
[402530723,1768698669238,-500.0,0.00017534,2]
[402530724,1768698669251,-934.13,0.00017534,2]
[402530725,1768698669265,-500.0,0.00017534,2]
[402530726,1768698669277,-500.0,0.00017534,2]
[402530727,1768698669289,-500.0,0.00017534,2]
[402530728,1768698669303,-500.0,0.00017534,2]
[402530729,1768698669317,-597.67,0.00017534,2]
[402530730,1768698669329,-500.0,0.00017534,2]
[402530731,1768698669342,-1063.48,0.00017534,2]
[402530732,1768698669354,-657.14,0.00017534,2]
[402530733,1768698669366,-500.0,0.00017534,2]
[402530734,1768698669378,-530.99,0.00017534,2]
[402530735,1768698669390,-500.0,0.00017534,2]
[402530736,1768698669402,-500.0,0.00017534,2]
[402530737,1768698669415,-500.0,0.00017534,2]
[402530738,1768698669427,-650.57,0.00017534,2]
[402530739,1768698669439,-500.0,0.00017534,2]
[402530740,1768698669451,-500.0,0.00017534,2]
[402530741,1768698669464,-667.99,0.00017534,2]
[402530742,1768698669476,-500.0,0.00017534,2]
[402530743,1768698669488,-500.0,0.00017534,2]
[402530744,1768698669500,-755.08,0.00017534,2]
[402530745,1768698669512,-609.3,0.00017534,2]
[402530746,1768698669524,-500.0,0.00017534,2]
[402530747,1768698669536,-514.83,0.00017534,2]
[402530748,1768698669547,-562.14,0.00017534,2]
[402530749,1768698669559,-815.13,0.00017534,2]
[402530750,1768698669571,-678.01,0.00017534,2]
[402530751,1768698669583,-500.0,0.00017534,2]
[402530752,1768698669594,-538.34,0.00017534,2]
[402530753,1768698669606,-500.0,0.00017534,2]
[402530754,1768698669618,-500.0,0.00017534,2]
[402530755,1768698669630,-1087.35,0.00017534,2]
[402530756,1768698669641,-722.12,0.00017534,2]
[402530757,1768698669653,-500.0,0.00017534,2]
[402530758,1768698669665,-500.0,0.00017534,2]
[402530759,1768698669676,-500.0,0.00017534,2]
[402530760,1768698669688,-500.0,0.00017534,2]
[402530761,1768698669699,-500.0,0.00017534,2]
[402530762,1768698669711,-996.94,0.00017534,2]
[402530763,1768698669723,-500.0,0.00017534,2]
[402530764,1768698669736,-589.89039719,0.00017534,2]
[402530765,1768698669747,-590.76,0.00017534,2]
[402530766,1768698669759,-500.0,0.00017534,2]
[402530767,1768698669772,-500.0,0.00017534,2]
[402530768,1768698669784,-525.89,0.00017534,2]
[402530769,1768698669795,-500.0,0.00017534,2]
[402530770,1768698669806,-500.0,0.00017534,2]
[402530771,1768698669817,-618.01,0.00017534,2]
[402530772,1768698669829,-594.13,0.00017534,2]
[402530773,1768698669839,-575.6,0.00017534,2]
[402530774,1768698669847,-662.62,0.00017534,2]
[402530775,1768698669858,-500.0,0.00017534,2]
[402530776,1768698669867,-500.0,0.00017534,2]
[402530777,1768698669876,-672.53,0.00017534,2]
[402530778,1768698669885,-500.0,0.00017534,2]
[402530779,1768698669895,-500.0,0.00017534,2]
[402530780,1768698669905,-500.0,0.00017534,2]
[402530781,1768698669916,-500.0,0.00017534,2]
[402530782,1768698669928,-500.0,0.00017534,2]
[402530783,1768698669939,-613.06,0.00017534,2]
[402530784,1768698669954,-500.0,0.00017534,2]
[402530785,1768698669965,-500.0,0.00017534,2]
[402530786,1768698669976,-500.0,0.00017534,2]
[402530787,1768698669987,-500.0,0.00017534,2]
[402530788,1768698669998,-526.73,0.00017534,2]
[402530789,1768698670009,-500.0,0.00017534,2]
[402530790,1768698670021,-512.15,0.00017534,2]
[402530791,1768698670032,-500.0,0.00017534,2]
[402530792,1768698670044,-500.0,0.00017534,2]
[402530793,1768698670055,-591.24,0.00017534,2]
[402530794,1768698670066,-556.47,0.00017534,2]
[402530795,1768698670077,-660.93,0.00017534,2]
[402530796,1768698670088,-515.32,0.00017534,2]
[402530797,1768698670099,-500.0,0.00017534,2]
[402530798,1768698670111,-500.0,0.00017534,2]
[402530799,1768698670122,-500.0,0.00017534,2]
[402530800,1768698670133,-500.0,0.00017534,2]
[402530801,1768698670144,-500.0,0.00017534,2]
[402530802,1768698670156,-500.0,0.00017534,2]
[402530803,1768698670167,-500.0,0.00017534,2]
[402530804,1768698670179,-517.54,0.00017534,2]
[402530805,1768698670190,-500.0,0.00017534,2]
[402530806,1768698670202,-500.0,0.00017534,2]
[402530807,1768698670213,-531.76,0.00017534,2]
[402530808,1768698670228,-500.0,0.00017534,2]
[402530809,1768698670239,-500.0,0.00017534,2]
[402530810,1768698670250,-356.33031753,0.00017534,2]
[402530811,1768698670262,-500.0,0.00017534,2]
[402530812,1768698670273,-600.68,0.00017534,2]
[402530813,1768698670284,-1529.19,0.00017534,2]
[402530814,1768698670296,-500.0,0.00017534,2]
[402530815,1768698670306,-500.0,0.00017534,2]
[402530816,1768698670317,-500.0,0.00017534,2]
[402530817,1768698670327,-500.0,0.00017534,2]
[402530818,1768698670338,-838.7,0.00017534,2]
[402530819,1768698670349,-500.0,0.00017534,2]
[402530820,1768698670359,-500.0,0.00017534,2]
[402530821,1768698670371,-567.94,0.00017534,2]
[402530822,1768698670382,-518.89,0.00017534,2]
[402530823,1768698670393,-673.61,0.00017534,2]
[402530824,1768698670404,-543.14,0.00017534,2]
[402530825,1768698670414,-721.15,0.00017534,2]
[402530826,1768698670425,-500.0,0.00017534,2]
[402530827,1768698670437,-500.0,0.00017534,2]
[402530828,1768698670448,-500.0,0.00017534,2]
[402530829,1768698670459,-500.0,0.00017534,2]
[402530830,1768698670470,-500.0,0.00017534,2]
[402530831,1768698670481,-500.0,0.00017534,2]
[402530832,1768698670492,-795.04,0.00017534,2]
[402530833,1768698670502,-500.0,0.00017534,2]
[402530834,1768698670513,-500.0,0.00017534,2]
[402530835,1768698670524,-500.0,0.00017534,2]
[402530836,1768698670536,-500.0,0.00017534,2]
[402530837,1768698670546,-500.0,0.00017534,2]
[402530838,1768698670558,-747.61,0.00017534,2]
[402530839,1768698670569,-500.0,0.00017534,2]
[402530840,1768698670580,-532.71,0.00017534,2]
[402530841,1768698670591,-500.0,0.00017534,2]
[402530842,1768698670602,-500.0,0.00017534,2]
[402530843,1768698670613,-500.0,0.00017534,2]
[402530844,1768698670625,-500.0,0.00017534,2]
[402530845,1768698670637,-564.09,0.00017534,2]
[402530846,1768698670649,-500.0,0.00017534,2]
[402530847,1768698670660,-880.67,0.00017534,2]
[402530848,1768698670672,-500.0,0.00017534,2]
[402530849,1768698670684,-500.0,0.00017534,2]
[402530850,1768698670695,-583.61,0.00017534,2]
[402530851,1768698670706,-500.0,0.00017534,2]
[402530852,1768698670717,-500.0,0.00017534,2]
[402530853,1768698670728,-500.0,0.00017534,2]
[402530854,1768698670739,-998.71,0.00017534,2]
[402530855,1768698670751,-500.0,0.00017534,2]
[402530856,1768698670761,-500.0,0.00017534,2]
[402530857,1768698670772,-500.0,0.00017534,2]
[402530858,1768698670783,-500.0,0.00017534,2]
[402530859,1768698670794,-876.66,0.00017534,2]
[402530860,1768698670805,-500.0,0.00017534,2]
[402530861,1768698670816,-500.0,0.00017534,2]
[402530862,1768698670829,-500.0,0.00017534,2]
[402530863,1768698670840,-510.62,0.00017534,2]
[402530864,1768698670851,-500.0,0.00017534,2]
[402530865,1768698670862,-500.0,0.00017534,2]
[402530866,1768698670874,-500.0,0.00017534,2]
[402530867,1768698670885,-500.0,0.00017534,2]
[402530868,1768698670896,-500.0,0.00017534,2]
[402530869,1768698670907,-500.0,0.00017534,2]
[402530870,1768698670918,-890.18,0.00017534,2]
[402530871,1768698670930,-500.0,0.00017534,2]
[402530872,1768698670942,-811.3,0.00017534,2]
[402530873,1768698670954,-500.0,0.00017534,2]
[402530874,1768698670965,-500.0,0.00017534,2]
[402530875,1768698670976,-500.0,0.00017534,2]
[402530876,1768698670987,-500.0,0.00017534,2]
[402530877,1768698670998,-500.0,0.00017534,2]
[402530878,1768698671009,-500.0,0.00017534,2]
[402530879,1768698671021,-617.43,0.00017534,2]
[402530880,1768698671032,-742.02,0.00017534,2]
[402530881,1768698671043,-500.0,0.00017534,2]
[402530882,1768698671055,-601.67,0.00017534,2]
[402530883,1768698671066,-521.55,0.00017534,2]
[402530884,1768698671079,-500.0,0.00017534,2]
[402530885,1768698671090,-1195.2,0.00017534,2]
[402530886,1768698671102,-676.44,0.00017534,2]
[402530887,1768698671113,-715.07,0.00017534,2]
[402530888,1768698671125,-945.1,0.00017534,2]
[402530889,1768698671136,-500.0,0.00017534,2]
[402530890,1768698671147,-576.18,0.00017534,2]
[402530891,1768698671158,-500.0,0.00017534,2]
[402530892,1768698671170,-500.0,0.00017534,2]
[402530893,1768698671181,-500.0,0.00017534,2]
[402530894,1768698671192,-500.0,0.00017534,2]
[402530895,1768698671203,-929.43,0.00017534,2]
[402530896,1768698671214,-658.51,0.00017534,2]
[402530897,1768698671227,-500.0,0.00017534,2]
[402530898,1768698671239,-500.0,0.00017534,2]
[402530899,1768698671249,-1186.57,0.00017534,2]
[402530900,1768698671260,-1058.82722253,0.00017534,2]
[402530901,1768698671271,-500.0,0.00017534,2]
[402530902,1768698671290,-804.65,0.00017534,2]
[402530903,1768698671302,-500.0,0.00017534,2]
[402530904,1768698671312,-556.52,0.00017534,2]
[402530905,1768698671323,-500.0,0.00017534,2]
[402530906,1768698671334,-257.86035404,0.00017534,2]
[402530907,1768698671347,-500.0,0.00017534,2]
[402530908,1768698671358,-958.14,0.00017534,2]
[402530909,1768698671371,-567.08,0.00017534,2]
[402530910,1768698671383,-500.0,0.00017534,2]
[402530911,1768698671392,-872.91,0.00017534,2]
[402530912,1768698671401,-500.0,0.00017534,2]
[402530913,1768698671411,-833.89,0.00017534,2]
[402530914,1768698671420,-500.0,0.00017534,2]
[402530915,1768698671429,-839.94,0.00017534,2]
[402530916,1768698671438,-500.0,0.00017534,2]
[402530917,1768698671448,-500.0,0.00017534,2]
[402530918,1768698671457,-707.98,0.00017534,2]
[402530919,1768698671466,-332.53326434,0.00017534,2]
[402530920,1768698671476,-963.32,0.00017534,2]
[402530921,1768698671485,-567.81,0.00017534,2]
[402530922,1768698671494,-500.0,0.00017534,2]
[402530923,1768698671503,-500.0,0.00017534,2]
[402530924,1768698671512,-500.0,0.00017534,2]
[402530925,1768698671521,-500.0,0.00017534,2]
[402530926,1768698671530,-500.0,0.00017534,2]
[402530927,1768698671540,-500.0,0.00017534,2]
[402530928,1768698671549,-1118.6,0.00017534,2]
[402530929,1768698671559,-500.0,0.00017534,2]
[402530930,1768698671568,-500.0,0.00017534,2]
[402530931,1768698671578,-579.96,0.00017534,2]
[402530932,1768698671586,-767.08,0.00017534,2]
[402530933,1768698671595,-500.0,0.00017534,2]
[402530934,1768698671605,-597.37,0.00017534,2]
[402530935,1768698671615,-463.84988152,0.00017534,2]
[402530936,1768698671623,-926.65,0.00017534,2]
[402530937,1768698671633,-500.0,0.00017534,2]
[402530938,1768698671642,-526.05,0.00017534,2]
[402530939,1768698671651,-1077.63,0.00017534,2]
[402530940,1768698671661,-500.0,0.00017534,2]
[402530941,1768698671669,-838.61,0.00017534,2]
[402530942,1768698671679,-500.0,0.00017534,2]
[402530943,1768698671688,-587.08,0.00017534,2]
[402530944,1768698671698,-500.0,0.00017534,2]
[402530945,1768698671707,-522.86,0.00017534,2]
[402530946,1768698671716,-500.0,0.00017534,2]
[402530947,1768698671726,-564.65,0.00017534,2]
[402530948,1768698671735,-500.0,0.00017534,2]
[402530949,1768698671744,-500.0,0.00017534,2]
[402530950,1768698671753,-500.0,0.00017534,2]